bitfinex-derivatives/quotes_ETHF0:USTF0_20240924
["timestamp","ask_amount","ask_price","bid_price","bid_amount"]
[1727210208735,5.94172354,2650.1,2650.0,1.5857]
[1727210209234,4.99841354,2650.1,2650.0,1.5857]
[1727210210330,1.32067,2650.0,2649.9,6.189]
[1727210211233,0.37733,2650.0,2649.9,6.189]
[1727210211930,3.02733,2650.1,2649.9,6.189]
[1727210212641,1.97866862,2650.0,2649.9,6.189]
[1727210212838,3.02733,2650.1,2650.0,1.7238]
[1727210213729,5.00645064,2650.1,2650.0,1.7238]
[1727210214237,2.35643064,2650.2,2650.0,1.7238]
[1727210218332,2.35643064,2650.2,2650.0,7.9128]
[1727210220137,1.97912064,2650.2,2650.0,7.9128]
[1727210220439,1.97912064,2650.2,2650.1,1.6161]
[1727210220642,2.35643064,2650.2,2650.1,1.6161]
[1727210221649,1.97912064,2650.2,2650.1,1.6161]
[1727210221857,5.11385442,2650.3,2650.1,1.6161]
[1727210222037,5.49115442,2650.3,2650.1,1.6161]
[1727210222228,0.37731,2650.2,2650.1,1.6161]
[1727210222431,2.46385442,2650.3,2650.2,4.15091]
[1727210222637,2.46385442,2650.6,2650.2,5.39211999]
[1727210222843,2.84107442,2650.9,2650.4,3.2078]
[1727210223045,0.37722,2650.8,2650.6,0.37725]
[1727210223340,0.37722,2650.8,2650.7,1.7473]
[1727210223547,0.37722,2650.8,2650.4,3.2078]
[1727210223548,0.37725,2650.6,2650.4,3.2078]
[1727210223847,2.65,2650.5,2650.4,3.2078]
[1727210224147,2.65,2650.5,2650.4,3.58508]
[1727210224950,2.65,2650.5,2650.4,3.2078]
[1727210225132,2.65,2650.5,2650.4,3.65975463]
[1727210225948,2.65,2650.5,2650.4,5.65813463]
[1727210226137,2.65,2650.5,2650.4,5.28085463]
[1727210227235,2.65,2650.5,2650.4,11.46985463]
[1727210227436,4.13246419,2650.5,2650.4,11.46985463]
[1727210227748,2.65,2650.5,2650.4,11.46985463]
[1727210227937,3.02726,2650.5,2650.4,11.46985463]
[1727210228137,0.37726,2650.6,2650.4,11.46985463]
[1727210228842,0.37726,2650.5,2650.4,11.46985463]
[1727210229046,1.85956825,2650.5,2650.4,11.46985463]
[1727210229345,1.85955825,2650.6,2650.4,11.46985463]
[1727210229646,0.37726,2650.5,2650.4,11.46985463]
[1727210230352,1.85956825,2650.6,2650.4,11.46985463]
[1727210230643,0.37726,2650.5,2650.4,11.46985463]
[1727210232747,3.02726,2650.5,2650.4,9.84875463]
[1727210232940,3.97043,2650.5,2650.4,6.64095463]
[1727210233248,7.74323,2650.5,2650.4,6.189]
[1727210234751,3.97043,2650.5,2650.4,6.189]
[1727210235049,3.02726,2650.5,2650.4,6.189]
[1727210235248,3.97043,2650.5,2650.4,6.189]
[1727210237452,3.02726,2650.5,2650.4,6.189]
[1727210237656,3.02726,2650.5,2650.4,7.8441]
[1727210242948,3.97043,2650.5,2650.4,7.8441]
[1727210243255,3.97043,2650.5,2650.4,6.189]
[1727210244542,8.6864,2650.5,2650.4,6.189]
[1727210244746,11.8942,2650.5,2650.4,6.189]
[1727210245453,7.74323,2650.5,2650.4,6.189]
[1727210247243,7.74323,2650.5,2650.0,1.5845]
[1727210247244,1.32063,2650.1,2650.0,1.5845]
[1727210247447,3.97063,2650.1,2650.0,1.5845]
[1727210247658,7.74423,2650.1,2650.0,1.5845]
[1727210250457,3.97063,2650.1,2650.0,1.5845]
[1727210250860,7.74423,2650.1,2650.0,1.5845]
[1727210252156,8.90523,2650.1,2650.0,1.5845]
[1727210252562,5.13163,2650.1,2650.0,1.5845]
[1727210252762,8.90523,2650.1,2650.0,1.5845]
[1727210252959,5.13163,2650.1,2650.0,1.5845]
[1727210253458,8.90523,2650.1,2650.0,1.5845]
[1727210254061,5.13163,2650.1,2650.0,1.5845]
[1727210255568,2.91947608,2650.2,2650.0,1.5845]
[1727210255753,1.48190239,2650.2,2650.0,1.5845]
[1727210255959,4.15096,2650.6,2650.1,9.01352]
[1727210255960,1.48177002,2650.3,2650.1,9.01352]
[1727210256263,3.79821,2650.7,2650.2,0.37731]
[1727210256264,0.37727,2650.5,2650.2,0.37731]
[1727210256765,4.08030608,2650.7,2650.2,0.3773]
[1727210256766,0.98780654,2650.3,2650.2,0.3773]
[1727210257066,0.98778112,2650.4,2650.3,0.37729]
[1727210257584,0.98778112,2650.4,2650.3,4.15009]
[1727210257958,0.98778112,2650.4,2650.3,3.7728]
[1727210258158,0.98778112,2650.4,2650.3,4.15009]
[1727210258957,0.37725,2650.6,2650.4,0.37728]
[1727210259152,0.37725,2650.6,2650.5,1.6056]
[1727210263072,3.02725,2650.6,2650.5,1.6056]
[1727210265872,2.35343608,2650.7,2650.5,1.6056]
[1727210266170,0.37724,2650.7,2650.6,1.7335]
[1727210268772,1.32033,2650.7,2650.6,1.7335]
[1727210270175,1.32038,2650.6,2650.5,1.6056]
[1727210270471,0.37725,2650.6,2650.5,1.6056]
[1727210271674,1.32038,2650.6,2650.5,1.6056]
[1727210271874,0.37728,2650.4,2650.3,5.87798618]
[1727210272072,0.37728,2650.4,2650.3,4.8906]
[1727210272279,1.59728,2650.4,2650.3,4.8906]
[1727210272669,2.54048,2650.4,2650.3,1.6828]
[1727210279174,3.69948,2650.4,2650.3,1.6828]
[1727210280174,1.59728,2650.4,2650.3,1.6828]
[1727210280379,2.75628,2650.4,2650.3,1.6828]
[1727210281188,4.73247608,2650.4,2650.3,1.6828]
[1727210282584,3.19619608,2650.4,2650.3,1.6828]
[1727210283685,3.57347608,2650.4,2650.3,1.6828]
[1727210284386,3.19619608,2650.5,2650.3,1.6828]
[1727210284690,1.97496062,2650.6,2650.4,1.966]
[1727210284888,1.97496062,2650.6,2650.4,2.34327]
[1727210285187,1.59726,2650.5,2650.4,1.966]
[1727210285575,1.59726,2650.5,2650.3,1.6828]
[1727210285576,0.37728,2650.4,2650.3,1.6828]
[1727210285774,1.59728,2650.4,2650.3,1.6828]
[1727210286883,4.13816062,2650.4,2650.0,2.95338618]
[1727210287189,1.22,2650.2,2650.0,6.01283]
[1727210287483,1.59731,2650.2,2650.0,6.62288618]
[1727210287882,1.22,2650.2,2650.0,7.00021618]
[1727210288083,1.97496062,2650.4,2650.1,0.37731]
[1727210288084,3.57224062,2650.4,2650.1,0.37731]
[1727210288283,1.97496062,2650.5,2650.1,3.58511]
[1727210288598,0.37729,2650.3,2650.1,4.19518618]
[1727210288780,0.37731,2650.2,2650.1,4.19518618]
[1727210289284,0.37731,2650.2,2650.1,8.16659033]
[1727210289491,0.37731,2650.2,2650.1,1.18519033]
[1727210289690,3.59318,2650.5,2650.1,4.76212097]
[1727210289983,1.97496062,2650.6,2650.1,4.19632097]
[1727210290183,0.37726,2650.6,2650.4,0.37727]
[1727210290378,0.37726,2650.6,2650.5,5.8796]
[1727210291988,0.37723,2650.7,2650.5,5.8796]
[1727210292190,0.37723,2650.7,2650.5,6.25686]
[1727210293081,5.55997062,2650.9,2650.7,0.37722]
[1727210293282,3.58502,2650.9,2650.7,0.37722]
[1727210293477,3.2078,2650.9,2650.8,4.15002]
[1727210293676,3.58501,2650.9,2650.8,4.15002]
[1727210293881,3.2078,2650.9,2650.8,4.15002]
[1727210294082,3.58501,2650.9,2650.8,3.7728]
[1727210295478,0.37721,2650.9,2650.8,3.7728]
[1727210296182,0.37719,2651.1,2650.9,0.37721]
[1727210296486,0.37719,2651.1,2651.0,3.7277]
[1727210296684,0.37719,2651.1,2651.0,6.9355]
[1727210298592,0.37719,2651.1,2651.0,3.7277]
[1727210305494,1.97504464,2651.2,2651.0,4.10488]
[1727210305702,0.37718,2651.1,2651.0,3.7277]
[1727210306200,3.02718,2651.1,2651.0,3.7277]
[1727210306897,0.94302,2650.9,2650.5,6.02312097]
[1727210307107,0.37725,2650.6,2650.5,5.0346]
[1727210307601,3.02725,2650.7,2650.5,5.0346]
[1727210307992,0.37725,2650.6,2650.5,3.2078]
[1727210308191,3.02724,2650.7,2650.5,3.2078]
[1727210308393,0.37725,2650.6,2650.5,3.2078]
[1727210312589,0.37726,2650.5,2650.4,3.7689]
[1727210313302,0.37726,2650.5,2650.4,1.8652]
[1727210313703,0.37726,2650.5,2650.1,2.90912097]
[1727210313704,0.94317,2650.5,2650.1,2.90912097]
[1727210314002,0.3773,2650.3,2650.2,1.7662]
[1727210315504,1.32054,2650.3,2650.2,1.7662]
[1727210315705,3.7736,2650.3,2650.0,3.2078]
[1727210316005,1.47999957,2650.4,2650.3,0.37729]
[1727210316196,1.47999957,2650.5,2650.3,3.58509]
[1727210316505,2.35112963,2650.7,2650.4,3.8128]
[1727210316506,1.47999957,2650.6,2650.4,3.8128]
[1727210316712,1.85724957,2650.6,2650.5,1.8185]
[1727210317303,1.47999957,2650.6,2650.5,1.8185]
[1727210317807,1.47999957,2650.7,2650.6,0.37725]
[1727210318619,1.47999957,2650.7,2650.5,1.8185]
[1727210318808,1.47999957,2650.7,2650.6,0.37725]
[1727210319399,0.37723,2650.8,2650.6,4.57357097]
[1727210320308,0.37723,2650.8,2650.6,4.57356097]
[1727210320514,0.37723,2650.8,2650.6,3.58504]
[1727210320708,0.37723,2650.8,2650.6,4.57356097]
[1727210322101,0.37723,2650.7,2650.6,4.57356097]
[1727210322306,0.37723,2650.7,2650.6,4.19632097]
[1727210322707,1.32032,2650.7,2650.6,3.2078]
[1727210322906,0.37725,2650.6,2650.5,2.80702097]
[1727210326010,0.37725,2650.6,2650.5,1.8185]
[1727210326420,0.37725,2650.6,2650.5,2.80667698]
[1727210328507,0.37725,2650.6,2650.5,1.8185]
[1727210328913,0.37725,2650.6,2650.5,2.8068623]
[1727210329712,0.37725,2650.6,2650.5,3.1841223]
[1727210329911,0.37725,2650.6,2650.5,2.19576]
[1727210330110,0.37725,2650.6,2650.5,3.38336734]
[1727210330307,1.47999957,2650.7,2650.6,0.37725]
[1727210330506,1.85722957,2650.8,2650.7,0.37723]
[1727210330713,0.37723,2650.7,2650.6,4.5735653]
[1727210331117,1.85722957,2650.7,2650.6,4.5735653]
[1727210331311,1.85722957,2650.7,2650.6,4.1963253]
[1727210331510,1.32032,2650.7,2650.6,3.2078]
[1727210332320,0.37723,2650.7,2650.6,3.2078]
[1727210332521,1.85688584,2650.7,2650.6,4.1963253]
[1727210333712,0.37723,2650.7,2650.6,3.2078]
[1727210334318,0.37723,2650.8,2650.6,3.2078]
[1727210334518,0.37723,2650.8,2650.7,0.98886398]
[1727210335825,0.37723,2650.8,2650.6,3.58505]
[1727210336020,1.97388963,2651.0,2650.7,1.36620852]
[1727210336221,1.97388963,2651.0,2650.8,0.98897852]
[1727210336422,2.35107963,2651.0,2650.9,3.8557]
[1727210336621,2.35107963,2651.0,2650.9,5.748]
[1727210337014,0.37719,2651.0,2650.9,5.748]
[1727210337223,0.37719,2651.0,2650.9,6.73697852]
[1727210338122,0.37721,2650.9,2650.8,0.98897852]
[1727210338517,3.97023,2650.9,2650.8,0.98897852]
[1727210339826,1.32028,2650.8,2650.7,2.93967852]
[1727210340024,1.32028,2650.8,2650.7,1.9507]
[1727210340224,1.32028,2650.8,2650.7,2.93979877]
[1727210340424,1.32028,2650.8,2650.7,1.9507]
[1727210340619,1.32028,2650.8,2650.7,2.93978977]
[1727210341428,1.32032,2650.7,2650.6,4.19688977]
[1727210341732,3.13672,2650.7,2650.6,4.19688977]
[1727210343231,0.37723,2650.7,2650.6,4.19688977]
[1727210343626,0.37723,2650.7,2650.6,3.2078]
[1727210343834,0.37723,2650.7,2650.6,4.19688977]
[1727210344325,1.97388963,2650.8,2650.6,4.57413977]
[1727210344524,0.37722,2650.8,2650.6,4.19688977]
[1727210344826,2.35110963,2650.9,2650.6,4.57413977]
[1727210345227,2.65,2650.7,2650.4,1.47850146]
[1727210345524,0.94324,2650.3,2649.9,1.47850146]
[1727210345728,1.85727383,2650.0,2649.8,1.47850146]
[1727210346031,1.85727383,2650.0,2649.9,1.18337154]
[1727210346235,1.47994383,2650.0,2649.9,1.18337154]
[1727210346530,0.37733,2650.0,2649.9,1.18337154]
[1727210347130,0.37733,2650.0,2649.9,1.18330967]
[1727210347532,0.37735,2649.9,2649.8,1.47850146]
[1727210347726,0.37735,2649.9,2649.8,2.66159622]
[1727210347931,0.37735,2649.9,2649.8,1.18309476]
[1727210348134,1.47994383,2650.1,2649.8,2.66159622]
[1727210348334,1.47994383,2650.1,2649.8,1.47850146]
[1727210348530,0.37736,2649.9,2649.7,5.61357146]
[1727210348732,0.37736,2649.9,2649.8,1.18291735]
[1727210349726,0.37736,2649.9,2649.8,2.66141881]
[1727210350832,0.37736,2649.9,2649.8,1.18291735]
[1727210352422,0.37736,2649.9,2649.8,1.56027735]
[1727210352628,0.37736,2649.9,2649.8,1.18291735]
[1727210353231,0.37736,2649.9,2649.8,1.56027735]
[1727210353930,1.47994383,2650.2,2649.8,4.95651735]
[1727210354232,0.37731,2650.2,2650.1,0.37731]
[1727210354436,0.37731,2650.2,2650.1,1.5594586]
[1727210354736,0.37731,2650.2,2650.1,9.1331586]
[1727210354926,0.37731,2650.2,2650.1,10.61166006]
[1727210355237,0.37728,2650.4,2650.3,0.37729]
[1727210355427,0.37727,2650.5,2650.4,0.37728]
[1727210356324,0.37729,2650.3,2650.2,2.1813]
[1727210356628,0.37729,2650.3,2650.2,3.36336852]
[1727210356833,0.37729,2650.3,2650.2,7.13696852]
[1727210357337,0.37728,2650.4,2650.3,0.37729]
[1727210358734,0.37729,2650.3,2650.2,1.804]
[1727210358936,0.37729,2650.3,2650.2,2.98609912]
[1727210359132,0.37729,2650.3,2650.2,5.5776]
[1727210362830,0.37729,2650.3,2650.2,5.95491]
[1727210363334,0.37729,2650.3,2650.2,7.13666636]
[1727210363544,0.37729,2650.3,2650.2,6.75935636]
[1727210364042,0.37729,2650.3,2650.2,5.5776]
[1727210364433,0.37729,2650.3,2650.2,7.13670263]
[1727210364638,0.37729,2650.3,2650.2,5.95491]
[1727210365039,0.37729,2650.3,2650.2,7.13592241]
[1727210365942,0.37729,2650.3,2650.2,7.13595517]
[1727210366643,0.37729,2650.3,2650.2,5.95491]
[1727210367440,0.37729,2650.3,2650.2,7.1360325]
[1727210370249,0.37729,2650.3,2650.2,3.3624325]
[1727210370449,0.37729,2650.3,2650.2,7.1360325]
[1727210370647,0.37729,2650.3,2650.2,2.98521401]
[1727210370840,0.37729,2650.3,2650.2,3.36252401]
[1727210371457,0.37729,2650.3,2650.2,2.98521401]
[1727210371666,0.37729,2650.3,2650.2,1.804]
[1727210373262,0.37729,2650.3,2650.2,2.18131]
[1727210374372,0.37729,2650.3,2650.2,1.804]
[1727210374870,1.32053,2650.3,2650.2,1.804]
[1727210375873,0.37729,2650.3,2650.2,1.804]
[1727210377668,1.32053,2650.3,2650.2,1.804]
[1727210377965,1.32053,2650.3,2650.0,1.47850146]
[1727210377966,0.37733,2650.0,2649.8,3.69765146]
[1727210378166,1.36141748,2650.0,2649.9,3.02157186]
[1727210379363,1.36141748,2650.0,2649.9,1.84]
[1727210379564,1.36141748,2650.0,2649.9,3.02158654]
[1727210379959,1.36141748,2650.0,2649.9,3.02158358]
[1727210380273,1.36141748,2650.0,2649.9,3.02158194]
[1727210380464,0.37735,2650.0,2649.9,3.02158194]
[1727210380773,1.36156354,2650.0,2649.9,3.02158194]
[1727210380973,0.37735,2650.0,2649.9,1.84]
[1727210381273,0.37735,2650.0,2649.9,3.02158483]
[1727210381466,1.36171749,2650.0,2649.9,3.02158483]
[1727210381978,0.98436749,2650.0,2649.9,3.39893483]
[1727210382167,0.98436749,2650.0,2649.9,4.61893483]
[1727210383465,0.98436749,2650.0,2649.9,6.09743629]
[1727210383771,0.98436749,2650.0,2649.9,4.61893483]
[1727210384174,0.98436749,2650.0,2649.9,6.55000534]
[1727210384366,0.98436749,2650.0,2649.9,6.09743629]
[1727210384565,0.98436749,2650.0,2649.9,6.55026575]
[1727210384963,0.98436749,2650.0,2649.9,6.09764471]
[1727210385160,0.98436749,2650.0,2649.9,6.55026594]
[1727210386172,0.98436749,2650.0,2649.9,10.32386594]
[1727210386470,1.85339123,2650.4,2650.3,0.37729]
[1727210387677,1.85339123,2650.4,2650.3,1.5633875]
[1727210387881,1.85339123,2650.4,2650.3,3.3637875]
[1727210388081,1.85339123,2650.4,2650.3,2.17769]
[1727210388576,1.85339123,2650.4,2650.3,1.8004]
[1727210389381,0.37729,2650.4,2650.3,1.8004]
[1727210389582,1.85495847,2650.4,2650.3,3.7539]
[1727210390582,0.37729,2650.4,2650.3,3.7539]
[1727210393280,0.37729,2650.4,2650.2,0.3773]
[1727210393467,0.37729,2650.4,2649.9,1.48324631]
[1727210393468,0.37733,2650.0,2649.9,1.48324631]
[1727210393671,0.37733,2650.0,2649.9,3.12168376]
[1727210394093,0.37733,2650.0,2649.9,3.12170538]
[1727210394585,7.7915317,2650.0,2649.9,1.63845907]
[1727210394776,1.32073,2649.9,2649.8,1.48324631]
[1727210394976,0.37738,2649.7,2649.6,3.39824631]
[1727210395177,0.37738,2649.7,2649.6,5.03605789]
[1727210397274,0.37738,2649.7,2649.6,4.58319033]
[1727210397588,0.37738,2649.7,2649.6,5.03602107]
[1727210399291,0.37738,2649.7,2649.6,3.09994402]
[1727210400579,0.37737,2649.8,2649.6,3.47732402]
[1727210400782,0.37738,2649.7,2649.6,1.915]
[1727210400977,0.37738,2649.7,2649.6,3.09919626]
[1727210401178,2.42036385,2649.9,2649.6,3.09919626]
[1727210401376,1.47697385,2650.0,2649.7,1.5615681]
[1727210401599,0.37736,2649.9,2649.8,2.19826]
[1727210401782,1.47697385,2650.1,2649.8,6.21281091]
[1727210401982,1.47697385,2650.2,2650.1,0.37732]
[1727210402477,0.37733,2650.1,2650.0,0.37733]
[1727210402677,1.47697385,2650.2,2650.1,0.37732]
[1727210402885,1.47697385,2650.2,2650.1,2.31612]
[1727210403790,1.85428385,2650.2,2650.1,2.31612]
[1727210404495,1.47697385,2650.2,2650.1,2.31612]
[1727210404877,6.12422844,2650.5,2650.2,0.37731]
[1727210404878,1.47697385,2650.3,2650.2,0.37731]
[1727210405281,0.37729,2650.3,2650.2,0.37731]
[1727210406591,1.85426385,2650.3,2650.2,0.37731]
[1727210406997,0.37729,2650.3,2650.2,0.37731]
[1727210407187,0.37731,2650.2,2650.1,1.9388]
[1727210407491,2.79755385,2650.2,2650.1,1.9388]
[1727210407691,1.32067,2650.0,2649.9,1.48324631]
[1727210407895,3.97067,2650.0,2649.9,1.18836845]
[1727210408195,3.02733,2650.0,2649.9,1.18836845]
[1727210409695,0.37735,2649.9,2649.8,3.47494631]
[1727210409884,0.37735,2649.9,2649.8,5.11602736]
[1727210411087,3.02734,2650.0,2649.8,5.49338736]
[1727210411300,0.37734,2650.0,2649.9,1.18843596]
[1727210415383,1.32068,2650.0,2649.9,1.18843596]
[1727210416588,2.79765385,2650.0,2649.9,1.18843596]
[1727210416788,0.37735,2649.9,2649.8,1.9917]
[1727210416991,0.37738,2649.7,2649.6,1.48324631]
[1727210417185,3.02738,2649.7,2649.6,1.18874279]
[1727210417593,0.37739,2649.6,2649.5,5.29484631]
[1727210417785,0.37739,2649.6,2649.5,6.9362929]
[1727210417988,3.02738,2649.7,2649.5,6.93629458]
[1727210418194,3.02738,2649.7,2649.6,1.18869058]
[1727210419288,2.08938,2649.9,2649.7,0.37737]
[1727210419289,1.47730753,2649.9,2649.7,0.37737]
[1727210419490,1.47730753,2649.9,2649.6,2.67193689]
[1727210419491,1.47730753,2649.9,2649.8,0.37736]
[1727210420894,1.85464753,2650.0,2649.8,0.37736]
[1727210421090,1.85422365,2650.0,2649.9,1.98]
[1727210421296,1.85422365,2650.0,2649.9,3.9408]
[1727210421504,1.47688365,2650.0,2649.9,4.31815]
[1727210421706,1.85421365,2650.1,2649.9,4.31815]
[1727210421896,1.85421365,2650.1,2650.0,1.8987]
[1727210422200,4.73926,2650.3,2650.0,8.34338813]
[1727210422201,1.85418365,2650.3,2650.0,8.34338813]
[1727210422402,1.85418365,2650.3,2650.1,1.18784182]
[1727210422607,1.85418365,2650.3,2650.2,0.37731]
[1727210422803,0.37731,2650.2,2650.1,0.37731]
[1727210423105,1.85418365,2650.3,2650.2,0.37731]
[1727210423994,0.3773,2650.3,2650.2,0.37731]
[1727210424194,0.3773,2650.3,2650.1,1.86055631]
[1727210424995,0.3773,2650.3,2650.2,0.37731]
[1727210425306,0.3773,2650.3,2650.1,1.86055631]
[1727210425897,1.85417365,2650.4,2650.2,0.37731]
[1727210426104,1.85417365,2650.4,2650.3,1.8341]
[1727210429801,1.47688365,2650.4,2650.3,1.8341]
[1727210430200,1.47688365,2650.4,2650.3,2.21139]
[1727210430418,1.47886533,2650.6,2650.3,10.38760207]
[1727210430702,0.37723,2650.8,2650.5,2.65]
[1727210430896,0.37723,2650.7,2650.6,1.56444267]
[1727210431103,0.943,2651.0,2650.6,4.15005]
[1727210431104,0.37723,2650.8,2650.6,4.15005]
[1727210431310,0.37723,2650.8,2650.7,1.8634]
[1727210432910,2.65,2651.1,2650.7,1.8634]
[1727210433206,1.146,2651.3,2650.7,1.8634]
[1727210433207,1.97325844,2651.3,2651.2,0.37716]
[1727210433412,0.088,2651.8,2651.2,0.37716]
[1727210433413,0.37709,2651.8,2651.5,0.37711]
[1727210433705,0.37707,2651.9,2651.6,3.9846]
[1727210433909,0.37707,2651.9,2651.7,1.8489]
[1727210434099,0.37706,2652.0,2651.7,2.22599]
[1727210434509,8.77360844,2652.3,2651.7,1.8489]
[1727210434510,6.80035,2652.3,2651.7,1.8489]
[1727210434899,0.37707,2651.9,2651.7,1.8489]
[1727210435100,0.37708,2651.8,2651.7,1.8489]
[1727210435307,0.37707,2651.9,2651.7,1.8489]
[1727210435608,2.65,2652.0,2651.7,1.8489]
[1727210436007,0.37707,2651.9,2651.7,1.8489]
[1727210437114,0.37708,2651.8,2651.7,1.8489]
[1727210437312,3.02708,2651.8,2651.7,1.8489]
[1727210437707,0.37708,2651.8,2651.7,1.8489]
[1727210438109,0.37707,2651.9,2651.7,1.8489]
[1727210438713,0.37708,2651.8,2651.7,1.8489]
[1727210439311,0.37707,2651.9,2651.7,1.8489]
[1727210439812,0.9426,2652.1,2651.7,1.8489]
[1727210440214,0.37708,2651.8,2651.7,1.8489]
[1727210441523,0.37706,2652.0,2651.7,5.99718]
[1727210441815,0.37707,2651.9,2651.7,2.22598]
[1727210442441,0.37707,2651.9,2651.7,1.8489]
[1727210442628,0.37708,2651.8,2651.7,1.8489]
[1727210443035,0.37708,2651.8,2651.7,5.6201]
[1727210443532,3.02708,2651.8,2651.7,1.8489]
[1727210443737,3.96978,2651.8,2651.7,1.8489]
[1727210444432,3.02708,2651.8,2651.7,1.8489]
[1727210444830,0.37708,2651.8,2651.7,1.8489]
[1727210447434,0.37708,2651.9,2651.7,1.8489]
[1727210447630,3.2078,2652.1,2651.7,1.8489]
[1727210447827,0.37705,2652.0,2651.7,2.22598]
[1727210448233,0.37707,2651.9,2651.7,1.8489]
[1727210448447,0.37708,2651.8,2651.7,1.8489]
[1727210451741,3.2078,2652.1,2651.7,1.8489]
[1727210452144,3.2078,2652.1,2651.7,2.22599]
[1727210452145,0.37706,2652.0,2651.7,2.22599]
[1727210452451,3.2078,2652.1,2651.7,1.8489]
[1727210452647,0.37705,2652.0,2651.7,2.22599]
[1727210452847,0.37707,2651.9,2651.7,1.8489]
[1727210453048,0.37707,2651.9,2651.7,2.22599]
[1727210453543,0.37708,2651.8,2651.7,1.8489]
[1727210457548,0.37709,2651.7,2651.6,1.8109]
[1727210460440,0.94274,2651.7,2651.3,3.7183]
[1727210460639,0.37713,2651.5,2651.4,1.9546]
[1727210461241,0.37713,2651.5,2651.2,3.2078]
[1727210461242,0.37715,2651.3,2651.2,3.2078]
[1727210461445,0.37715,2651.3,2650.8,2.65]
[1727210461446,0.94277,2651.6,2651.1,5.98487]
[1727210461642,0.94277,2651.6,2651.2,0.37716]
[1727210461849,0.94275,2651.7,2651.2,0.37716]
[1727210462047,0.94275,2651.7,2651.1,5.6077]
[1727210462347,6.8278,2651.9,2651.2,3.59291]
[1727210462348,4.15049,2651.9,2651.2,3.59291]
[1727210462547,7.84817,2652.2,2651.4,5.8578]
[1727210462756,0.37709,2651.8,2651.6,0.37711]
[1727210462959,0.37709,2651.8,2651.7,3.7406]
[1727210463453,0.94264,2652.0,2651.7,3.7406]
[1727210463652,0.37708,2651.8,2651.7,3.7406]
[1727210468951,0.37708,2651.9,2651.7,3.7406]
[1727210469255,2.08561,2652.1,2651.7,4.11768]
[1727210469448,0.37707,2651.9,2651.7,3.7406]
[1727210469856,0.37708,2651.9,2651.7,3.7406]
[1727210470053,0.37708,2651.9,2651.7,4.11769]
[1727210470357,0.37708,2651.9,2651.7,3.7406]
[1727210470558,0.37708,2651.8,2651.7,3.7406]
[1727210471263,2.08561,2652.1,2651.7,7.88889]
[1727210471557,0.37707,2651.9,2651.7,4.11769]
[1727210471854,0.37708,2651.8,2651.7,4.11769]
[1727210472263,0.37708,2651.8,2651.7,7.88889]
[1727210472456,0.37708,2651.8,2651.7,3.7406]
[1727210472661,1.31978,2651.8,2651.7,3.7406]
[1727210474056,0.37708,2651.8,2651.7,3.7406]
[1727210478565,2.35033844,2651.8,2651.7,3.7406]
[1727210479365,3.29303844,2651.8,2651.7,3.7406]
[1727210479565,1.31978,2651.8,2651.7,1.8666]
[1727210479768,0.37711,2651.6,2651.5,6.144777]
[1727210480061,2.35574604,2651.6,2651.5,8.109977]
[1727210480259,2.35574604,2651.6,2651.5,8.487097]
[1727210480260,1.97863604,2651.6,2651.5,8.487097]
[1727210480467,2.35572604,2651.7,2651.5,10.69989991]
[1727210480660,2.35572604,2651.7,2651.6,0.98835385]
[1727210480859,0.37711,2651.6,2651.5,4.90815385]
[1727210481058,2.35572136,2651.6,2651.5,3.9198]
[1727210483671,3.29849136,2651.6,2651.5,3.9198]
[1727210484173,1.31988,2651.6,2651.5,3.9198]
[1727210484366,1.31988,2651.6,2651.5,6.09832111]
[1727210484670,1.31988,2651.6,2651.5,4.90815385]
[1727210484869,1.31988,2651.6,2651.5,6.09836547]
[1727210485072,0.37711,2651.6,2651.5,6.09836547]
[1727210485365,0.37711,2651.6,2651.5,5.11001162]
[1727210486373,0.37711,2651.6,2651.5,3.9198]
[1727210486964,0.37711,2651.6,2651.5,5.10902404]
[1727210487470,0.3771,2651.7,2651.5,5.10902404]
[1727210487668,0.37708,2651.8,2651.5,5.48613404]
[1727210488066,0.37708,2651.8,2651.5,8.69393404]
[1727210488659,0.37708,2651.8,2651.5,5.48613404]
[1727210490565,0.3771,2651.7,2651.5,5.48613404]
[1727210491068,0.3771,2651.7,2651.5,5.10902404]
[1727210491274,0.94267,2651.9,2651.5,5.10902404]
[1727210491476,0.37708,2651.8,2651.5,5.48613404]
[1727210491869,0.37711,2651.6,2651.5,5.10902404]
[1727210492873,0.3771,2651.7,2651.5,5.10902404]
[1727210493376,0.37711,2651.6,2651.5,5.10902404]
[1727210494071,1.86067963,2651.6,2651.5,6.59188898]
[1727210494375,1.86067963,2651.6,2651.5,7.78154191]
[1727210495664,0.37711,2651.6,2651.5,6.09776751]
[1727210496469,0.37711,2651.6,2651.5,5.10902404]
[1727210497070,0.37711,2651.6,2651.5,6.09776751]
[1727210497271,0.37711,2651.6,2651.5,5.10902404]
[1727210498079,3.29797284,2651.6,2651.5,1.18922404]
[1727210498275,5.61307284,2651.6,2651.5,1.18922404]
[1727210498580,4.30677284,2651.6,2651.5,1.18922404]
[1727210499981,2.32868,2651.6,2651.5,1.18922404]
[1727210500176,2.47261605,2651.7,2651.5,1.18922404]
[1727210500389,1.97780692,2651.7,2651.6,1.5066]
[1727210500678,2.35489692,2651.7,2651.6,3.0424]
[1727210501178,3.29763692,2651.7,2651.6,3.0424]
[1727210501381,3.29763692,2651.7,2651.5,1.18922404]
[1727210501382,1.31988,2651.6,2651.5,1.18922404]
[1727210501681,2.95368,2651.6,2651.5,1.18922404]
[1727210501986,6.72488,2651.6,2651.5,1.18922404]
[1727210502280,7.94488,2651.6,2651.5,1.18922404]
[1727210502980,8.88765,2651.6,2651.5,1.18922404]
[1727210503178,20.56806605,2651.6,2651.5,1.18922404]
[1727210503374,18.09545,2651.6,2651.5,1.18922404]
[1727210504182,0.37715,2651.3,2651.2,5.87114347]
[1727210504487,1.86033424,2651.3,2651.2,5.87114347]
[1727210504672,0.94292,2651.2,2651.0,0.98874347]
[1727210504982,0.94292,2651.2,2650.9,1.4913]